fUST/lending_fUST_20260210
["ID","MTS","AMOUNT","RATE_DAILY","PERIOD"]
[404917203,1770677348217,-554.82956743,0.00023603,2]
[404917204,1770677348239,-555.384397,0.00023603,2]
[404917205,1770677348259,-554.82956743,0.00023603,2]
[404917206,1770677348281,-554.82956743,0.00023603,2]
[404917207,1770677348302,-554.82956743,0.00023603,2]
[404917208,1770677348322,-516.16,0.00023999,2]
[404917209,1770677348345,-177.0,0.00025548,2]
[404917210,1770677348365,-200.0,0.00027397,2]
[404917211,1770677348387,-204.0,0.00027548,2]
[404917212,1770677348408,-4101.8644171,0.00028282,2]
[404917213,1770677348429,-185.754853,0.00028418,60]
[404917214,1770677348452,-301.40593931,0.00028548,2]
[404917215,1770677348474,-1262.36903955,0.00028603,2]
[404917216,1770677348495,-90.01898456,0.00029299,2]
[404917221,1770677406822,500.0,0.00013699,2]
[404917223,1770677430670,500.0,0.00013699,2]
[404917224,1770677430736,500.0,0.00014247,2]
[404917243,1770677431682,-745.41525679,0.00024953,2]
[404917244,1770677431695,-444.54488708,0.00024953,2]
[404917417,1770677444493,-504.18517485,0.00024953,2]
[404917418,1770677444504,-722.0,0.00024953,2]
[404917437,1770677445971,-2583.85468128,0.00024953,2]
[404917438,1770677445981,-913.0,0.00029299,2]
[404917439,1770677445991,-231.0,0.00029548,2]
[404917440,1770677446001,-746.9988151,0.00029811,2]
[404917441,1770677446010,-1057.19007307,0.00030124,2]
[404917442,1770677446020,-172.82502619,0.00030124,2]
[404917443,1770677446030,-201.04437849,0.00030635,2]
[404917444,1770677446039,-258.0,0.00031548,2]
[404917445,1770677446049,-500.0,0.00032997,7]
[404917446,1770677446059,-500.0,0.00032997,7]
[404917447,1770677446069,-412.74442703,0.00032997,7]
[404917466,1770677473817,500.0,0.00013273,2]
[404917467,1770677482386,500.0,0.00013699,2]
[404917468,1770677484015,511.49094486,0.00013699,2]
[404917473,1770677494154,408.55432392,0.00013699,2]
[404917476,1770677504448,511.85365811,0.00013699,2]
[404917541,1770677703805,339.17368825,0.00013699,2]
[404917542,1770677707195,500.0,0.00013699,2]
[404917543,1770677710780,488.50905514,0.00013699,2]
[404917544,1770677728220,412.64967482,0.00013699,2]
[404917562,1770677945736,5000.0,0.00025,2]
[404917566,1770677954020,1222.6331114,0.00025,2]
[404917572,1770678033474,2583.85468128,0.00025,2]
[404917573,1770678034930,300.82773,0.00027,120]
[404917605,1770678390137,-150.0,0.00025247,2]
[404917606,1770678390160,-80.96463151,0.00025289,2]
[404917607,1770678398027,500.0,0.00013273,2]
[404917608,1770678398086,485.9535282,0.00013821,2]
[404917618,1770678605884,190.76989047,0.00013273,2]
[404917642,1770678632021,-150.0,0.00025247,2]
[404917643,1770678632031,-170.23,0.00025247,2]
[404917644,1770678632043,-295.09052318,0.00025247,2]
[404917645,1770678632055,-358.67947682,0.00025247,2]
[404917646,1770678632065,-270.44052318,0.00025289,2]
[404917687,1770678638092,-29.55947682,0.00025289,2]
[404917689,1770678638103,-817.0,0.00025289,2]
[404917700,1770678638211,-258.80362388,0.0002529,2]
[404917702,1770678638224,-250.73907612,0.0002529,2]
[404917704,1770678638234,-337.5473,0.0002529,3]
[404917706,1770678638244,-509.54,0.0002529,2]
[404917708,1770678638254,-508.67,0.0002529,2]
[404917710,1770678638263,-101.23182115,0.000257,2]
[404917712,1770678638275,-75.91063621,0.000257,2]
[404917714,1770678638285,-177.0,0.00027247,2]
[404917716,1770678638295,-264.0,0.00027388,2]
[404917718,1770678638305,-184.46076279,0.00027397,2]
[404917721,1770678638319,-15.53923721,0.00027397,2]
[404917723,1770678638329,-238.2453929,0.00027472,2]
[404917725,1770678638339,-180.590443,0.00028977,2]
[404917727,1770678638349,-569.98728262,0.00029038,2]
[404917767,1770678651845,-25.66273683,0.00029038,2]
[404917768,1770678659071,5000.0,0.00025,2]
[404917769,1770678667681,388.78712474,0.00025,2]
[404918055,1770679718849,997.96770573,0.0002465,2]
[404918093,1770679832044,-150.0,0.00025291,2]
[404918095,1770679832053,-229.735,0.00025376,2]
[404918097,1770679832065,-347.875,0.00025376,2]
[404918102,1770679832103,-249.39,0.00025376,2]
[404918104,1770679832112,-268.0498106,0.00026051,2]
[404918106,1770679832121,-26.98090705,0.00026076,2]
[404918108,1770679832134,-297.42005038,0.00026076,2]
[404918110,1770679832144,-294.9453164,0.00027251,2]
[404918514,1770679838235,-47.6097527,0.00027251,2]
[404918515,1770679838245,-286.8942015,0.00027251,2]
[404918516,1770679838254,-1488.2265706,0.00027251,2]
[404918517,1770679838264,-177.0,0.00027291,2]
[404918518,1770679838274,-200.0,0.00027397,2]
[404918519,1770679838284,-672.0201812,0.00028426,5]
[404918520,1770679838295,-175.15833525,0.00029038,2]
[404918521,1770679838304,-204.0,0.00029291,2]
[404918522,1770679838314,-1030.322026,0.00029345,2]
[404918523,1770679838324,-428.84170722,0.00029638,2]
[404918524,1770679838334,-578.6969922,0.00029638,2]
[404918525,1770679838346,-183.68826509,0.00029638,2]
[404918526,1770679838355,-250.0,0.00029666,2]
[404918527,1770679838366,-447.0,0.0003,30]
[404918528,1770679838376,-1000.0,0.00030192,30]
[404918529,1770679838385,-425.532188,0.00030354,2]
[404918530,1770679838395,-1488.2265706,0.00030402,2]
[404918531,1770679838405,-152.05396661,0.00030547,2]
[404918532,1770679838414,-150.54452861,0.00030547,2]
[404918533,1770679838424,-151.0,0.00031182,2]
[404918534,1770679838434,-151.0,0.00031182,2]
[404918535,1770679838444,-151.0,0.00031182,2]
[404918536,1770679838453,-151.0,0.00031182,2]
[404918537,1770679838463,-151.0,0.00031182,2]
[404918538,1770679838472,-173.49232412,0.00031182,2]
[404918539,1770679838483,-342.5550691,0.00031203,2]
[404918540,1770679838492,-231.0,0.00031291,2]
[404918541,1770679838502,-2407.0761589,0.00031849,2]
[404918542,1770679838512,-276.24,0.00031915,2]
[404918543,1770679838522,-500.0,0.00032415,2]
[404918544,1770679838532,-500.0,0.00032415,2]
[404918545,1770679838543,-500.0,0.00032415,2]
[404918546,1770679838554,-500.0,0.00032415,2]
[404918547,1770679838563,-181.04453264,0.00032415,2]
[404918668,1770679846297,-172.92025098,0.00030124,2]
[404918669,1770679846308,-318.95546736,0.00032415,2]
[404918670,1770679846318,-308.12428166,0.00032415,2]
[404918671,1770679846330,-191.87571834,0.00032415,2]
[404918672,1770679846339,-500.0,0.00032415,2]
[404918673,1770679846348,-500.0,0.00032415,2]
[404918674,1770679846358,-500.0,0.00032415,2]
[404918675,1770679846368,-500.0,0.00032415,2]
[404918676,1770679846378,-500.0,0.00032415,2]
[404918677,1770679846388,-500.0,0.00032415,2]
[404918678,1770679846398,-500.0,0.00032415,2]
[404918679,1770679846408,-500.0,0.00032415,2]
[404918680,1770679846418,-500.0,0.00032415,2]
[404918681,1770679846427,-500.0,0.00032415,2]
[404918682,1770679846437,-500.0,0.00032415,2]
[404918683,1770679846447,-500.0,0.00032415,2]
[404918684,1770679846458,-500.0,0.00032415,2]
[404918685,1770679846468,-500.0,0.00032415,2]
[404918686,1770679846478,-500.0,0.00032415,2]
[404918687,1770679846487,-500.0,0.00032415,2]
[404918688,1770679846498,-500.0,0.00032415,2]
[404918689,1770679846507,-500.0,0.00032415,2]
[404918690,1770679846516,-500.0,0.00032415,2]
[404918691,1770679846525,-500.0,0.00032415,2]
[404918692,1770679846535,-500.0,0.00032415,2]
[404918693,1770679846544,-500.0,0.00032415,2]
[404918694,1770679846556,-506.02745863,0.00032415,2]
[404918695,1770679846566,-312.33682303,0.00032415,2]
[404918696,1770679846582,-187.66317697,0.00032415,2]
[404918697,1770679846592,-109.45465782,0.00032415,2]
[404918702,1770679851087,3889.70153997,0.00025,2]
[404918728,1770680337550,500.0,0.00027194,120]
[404918928,1770680974159,-2539.09873151,0.00023698,2]
[404918929,1770680974180,-15009.23868512,0.00023857,2]
[404918975,1770681038449,-139.68213043,0.00023857,2]
[404918976,1770681038459,-795.0,0.00023857,2]
[404918977,1770681038468,-150.0,0.00024058,2]
[404918978,1770681038478,-500.0,0.00024573,2]
[404918979,1770681038487,-1200.0,0.00024573,2]
[404918980,1770681038496,-500.0,0.00024573,2]
[404918981,1770681038506,-418.42040005,0.00024574,2]
[404918982,1770681038515,-332.26051889,0.00024574,2]
[404918983,1770681038524,-950.1269561,0.00024998,2]
[404918984,1770681038534,-300.0,0.00025575,2]
[404918985,1770681038544,-300.0,0.00025575,2]
[404918986,1770681038553,-300.0,0.00025575,2]
[404918987,1770681038563,-569.9872826,0.00025576,2]
[404918988,1770681038572,-177.0,0.00026058,2]
[404918989,1770681038582,-453.0,0.00026754,2]
[404918990,1770681038591,-500.0,0.00027396,2]
[404918991,1770681038712,-303.00636104,0.00027396,2]
[404918992,1770681038722,-500.0,0.00027396,2]
[404918993,1770681038732,-500.0,0.00027396,2]
[404918994,1770681038742,-500.0,0.00027396,2]
[404918995,1770681038752,-500.0,0.00027396,2]
[404918996,1770681038761,-500.0,0.00027396,2]
[404918997,1770681038774,-500.0,0.00027396,2]
[404918998,1770681038784,-500.0,0.00027396,2]
[404918999,1770681038794,-500.0,0.00027396,2]
[404919000,1770681038803,-500.0,0.00027396,2]
[404919001,1770681038813,-503.7709663,0.00027396,2]
[404919002,1770681038822,-500.0,0.00027396,2]
[404919003,1770681038831,-500.0,0.00027396,2]
[404919004,1770681038840,-500.0,0.00027396,2]
[404919005,1770681038850,-500.0,0.00027396,2]
[404919006,1770681038859,-169.34993246,0.00027396,2]
[404919007,1770681038869,-500.0,0.00027396,2]
[404919008,1770681038878,-482.19198218,0.00027396,2]
[404919009,1770681038887,-500.0,0.00027396,2]
[404919010,1770681038897,-500.0,0.00027396,2]
[404919011,1770681038906,-500.0,0.00027396,2]
[404919012,1770681038915,-500.0,0.00027396,2]
[404919013,1770681038924,-500.0,0.00027396,2]
[404919014,1770681038934,-500.0,0.00027396,2]
[404919015,1770681038943,-500.0,0.00027396,2]
[404919016,1770681038952,-500.0,0.00027396,2]
[404919017,1770681038962,-500.0,0.00027396,2]
[404919018,1770681038971,-500.0,0.00027396,2]
[404919019,1770681038980,-500.0,0.00027396,2]
[404919020,1770681038990,-500.0,0.00027396,2]
[404919021,1770681038999,-224.81239618,0.00027396,2]
[404919022,1770681039009,-500.0,0.00027396,2]
[404919023,1770681039019,-540.61115468,0.00027396,2]
[404919024,1770681039031,-500.0,0.00027396,2]
[404919025,1770681039042,-500.0,0.00027396,2]
[404919026,1770681039051,-500.0,0.00027396,2]
[404919027,1770681039062,-500.0,0.00027396,2]
[404919028,1770681039072,-500.0,0.00027396,2]
[404919029,1770681039082,-500.0,0.00027396,2]
[404919030,1770681039091,-500.0,0.00027396,2]
[404919031,1770681039100,-500.0,0.00027396,2]
[404919032,1770681039109,-500.0,0.00027396,2]
[404919033,1770681039118,-500.0,0.00027396,2]
[404919034,1770681039127,-500.0,0.00027396,2]
[404919035,1770681039137,-500.0,0.00027396,2]
[404919036,1770681039147,-500.0,0.00027396,2]
[404919037,1770681039157,-500.0,0.00027396,2]
[404919038,1770681039167,-500.0,0.00027396,2]
[404919039,1770681039176,-500.0,0.00027396,2]
[404919040,1770681039185,-500.0,0.00027396,2]
[404919041,1770681039194,-500.0,0.00027396,2]
[404919042,1770681039204,-500.0,0.00027396,2]
[404919043,1770681039213,-500.0,0.00027396,2]
[404919044,1770681039224,-500.0,0.00027396,2]
[404919045,1770681039234,-500.0,0.00027396,2]
[404919046,1770681039243,-500.0,0.00027396,2]
[404919047,1770681039253,-500.0,0.00027396,2]
[404919048,1770681039263,-500.0,0.00027396,2]
[404919049,1770681039272,-500.0,0.00027396,2]
[404919050,1770681039281,-220.24355357,0.00027396,2]
[404919051,1770681039290,-325.48,0.00027397,2]
[404919052,1770681039299,-142.02210411,0.0002767,2]
[404919103,1770681040613,-357.97789589,0.0002767,2]
[404919104,1770681040622,-203.00676349,0.00027944,2]
[404919107,1770681040638,-413.04981811,0.00027944,2]
[404919109,1770681040647,-204.0,0.00028058,2]
[404919111,1770681040656,-32.04018189,0.00028058,7]
[404919113,1770681040667,-118.95981811,0.00028058,7]
[404919115,1770681040677,-151.0,0.00028058,7]
[404919117,1770681040687,-151.0,0.00028058,7]
[404919119,1770681040696,-151.0,0.00029179,7]
[404919121,1770681040706,-151.0,0.00029179,7]
[404919123,1770681040715,-151.0,0.00029179,7]
[404919125,1770681040724,-151.0,0.00029279,7]
[404919127,1770681040733,-151.0,0.00029279,7]
[404919129,1770681040743,-151.0,0.00029279,7]
[404919131,1770681040752,-151.0,0.00029279,7]
[404919133,1770681040761,-151.0,0.00029279,7]
[404919135,1770681040771,-151.0,0.00029279,7]
[404919136,1770681040781,-246.352341,0.00029279,7]
[404919138,1770681040790,-2568.42845616,0.00029281,2]
[404919140,1770681040799,-231.0,0.00030058,2]
[404919142,1770681040808,-187.131378,0.00030622,2]
[404919144,1770681040817,-372.12538168,0.00031313,2]
[404919146,1770681040826,-500.0,0.00031956,2]
[404919148,1770681040836,-685.1101384,0.00031958,2]
[404919150,1770681040845,-1227.04420889,0.00031958,2]
[404919437,1770681045851,-453.0,0.00031958,2]
[404919440,1770681046891,-1296.40893231,0.00031958,2]
[404919441,1770681046901,-258.0,0.00032058,2]
[404919442,1770681046910,-500.0,0.00032373,2]
[404919443,1770681046919,-500.0,0.00032373,2]
[404919444,1770681046928,-250.0,0.00032373,2]
[404919445,1770681046937,-250.0,0.00032373,2]
[404919446,1770681046946,-500.0,0.00032373,2]
[404919447,1770681046956,-250.0,0.00032373,2]
[404919448,1770681046965,-250.0,0.00032373,2]
[404919449,1770681046974,-500.0,0.00032373,2]
[404919450,1770681046983,-250.0,0.00032373,2]
[404919451,1770681046992,-261.69058041,0.00032373,2]
[404919452,1770681047001,-500.0,0.00032373,2]
[404919453,1770681047011,-250.0,0.00032373,2]
[404919454,1770681047021,-500.0,0.00032373,2]
[404919455,1770681047032,-250.0,0.00032373,2]
[404919456,1770681047043,-500.0,0.00032373,2]
[404919457,1770681047053,-250.0,0.00032373,2]
[404919458,1770681047063,-250.0,0.00032373,2]
[404919459,1770681047074,-10.57205892,0.00032373,2]
[404919461,1770681047128,-198.83231792,0.00032373,2]
[404919462,1770681047139,-250.0,0.00032373,2]
[404919463,1770681047149,-217.15233878,0.00032373,2]
[404919464,1770681047159,-250.0,0.00032373,2]
[404919465,1770681047168,-225.18697532,0.00032373,2]
[404919466,1770681047178,-233.51889341,0.00032373,2]
[404919467,1770681047187,-242.15909246,0.00032373,2]
[404919468,1770681047196,-162.94244844,0.00032373,2]
[404919469,1770681047216,-88.17653044,0.00032373,2]
[404919470,1770681047226,-500.0,0.00032373,2]
[404919471,1770681047235,-260.4103811,0.00032373,2]
[404919472,1770681047245,-302.10106822,0.00032373,2]
[404919473,1770681047254,-250.0,0.00032373,2]
[404919474,1770681047264,-500.0,0.00032373,2]
[404919475,1770681047273,-250.0,0.00032373,2]
[404919476,1770681047283,-250.0,0.00032373,2]
[404919478,1770681047293,-500.0,0.00032373,2]
[404919479,1770681047302,-250.0,0.00032373,2]
[404919481,1770681047312,-250.0,0.00032373,2]
[404919482,1770681047321,-500.0,0.00032373,2]
[404919483,1770681047332,-250.0,0.00032373,2]
[404919484,1770681047342,-110.92826112,0.00032373,2]
[404919602,1770681738975,-150.0,0.00024418,2]
[404919603,1770681739004,-746.79158332,0.00024457,2]
[404919604,1770681739018,-61.20841668,0.00024457,2]
[404919605,1770681739151,-88.79158332,0.00024557,2]
[404919606,1770681739163,-234.0026006,0.00024557,2]
[404919607,1770681739172,-516.16,0.00024573,2]
[404919628,1770682003215,-5000.0,0.0002451,2]
[404919629,1770682003236,-11034.80299039,0.00024658,2]
[404919632,1770682041086,-194.87785791,0.00024167,2]
[404919633,1770682041108,-150.0,0.00024289,2]
[404919634,1770682041133,-2995.58442023,0.00024411,2]
[404919635,1770682041154,-4255.85965028,0.00024658,2]
[404919636,1770682041177,-3257.25715359,0.00025008,2]
[404919637,1770682041199,-177.0,0.00026289,2]
[404919638,1770682041222,-200.0,0.0002778,2]
[404919639,1770682041246,-204.0,0.00028289,2]
[404919640,1770682041267,-6373.62046382,0.00029061,7]
[404919641,1770682041290,-1000.0,0.00029061,30]
[404919642,1770682041310,-465.535194,0.00029433,2]
[404919643,1770682041336,-405.11491525,0.00029758,2]
[404919644,1770682041357,-231.0,0.00030289,2]
[404919645,1770682041484,-2443.77619868,0.00031318,2]
[404919646,1770682041505,-1296.4089323,0.00031818,2]
[404919647,1770682041526,-258.0,0.00032289,2]
[404919648,1770682041546,-238.67916769,0.00032373,2]
[404919649,1770682041566,-151.0,0.00032418,7]
[404919650,1770682041586,-213.922536,0.00032418,7]
[404919651,1770682041608,-500.0,0.00032776,2]
[404919652,1770682041630,-170.92815199,0.00032776,2]
[404919653,1770682041653,-500.0,0.00032776,2]
[404919654,1770682041674,-301.51657384,0.00032776,2]
[404919655,1770682041696,-500.0,0.00032776,2]
[404919656,1770682041718,-560.06790608,0.00032776,2]
[404919657,1770682041740,-247.20137735,0.00032776,2]
[404919658,1770682041760,-518.81665916,0.00032776,2]
[404919659,1770682041780,-3370.46546525,0.00032777,2]
[404919660,1770682041800,-151.0,0.00032875,7]
[404919661,1770682041819,-500.0,0.00032876,2]
[404919662,1770682041839,-2000.0,0.00032877,2]
[404919663,1770682041859,-2000.0,0.00032877,2]
[404919664,1770682041878,-2000.0,0.00032877,2]
[404919665,1770682041898,-2000.0,0.00032877,2]
[404919666,1770682041926,-2000.0,0.00032877,2]
[404919667,1770682041953,-1730.08171213,0.00032877,2]
[404919668,1770682041974,-151.0,0.00032877,31]
[404919669,1770682041994,-151.0,0.00032877,31]
[404919670,1770682042015,-151.0,0.00032877,31]
[404919671,1770682042034,-151.0,0.00032877,31]
[404919672,1770682042055,-151.0,0.00032877,7]
[404919673,1770682042076,-151.0,0.00032877,7]
[404919674,1770682042097,-1041.66666667,0.00032996,7]
[404919675,1770682042118,-151.0,0.00032999,31]
[404919676,1770682042138,-500.0,0.00032999,2]
[404919677,1770682042158,-18246.12328625,0.00033,120]
[404919678,1770682042179,-574.9,0.00033,3]
[404919679,1770682042199,-1041.66666667,0.00033,120]
[404919680,1770682042219,-151.0,0.00033,31]
[404919681,1770682042239,-151.0,0.00033,7]
[404919682,1770682042261,-600.0,0.00033533,30]
[404919683,1770682042280,-171.82,0.00033762,120]
[404919684,1770682042300,-375.5641718,0.00033777,7]
[404919685,1770682042324,-258.61546377,0.00033777,2]
[404919686,1770682042344,-3808.36117188,0.00033778,2]
[404919687,1770682042366,-1199.44,0.00033778,3]
[404919688,1770682042386,-599.72,0.00033778,3]
[404919689,1770682042405,-299.86,0.00033778,3]
[404919690,1770682042424,-899.61,0.00033778,3]
[404919691,1770682042444,-151.0,0.00033778,31]
[404919692,1770682042464,-450617.06836048,0.00033788,60]
[404919693,1770682042483,-702.41,0.000338,2]
[404919694,1770682042502,-187.131378,0.00033845,2]
[404919695,1770682042522,-250.0,0.0003397,2]
[404919696,1770682042542,-250.0,0.0003397,2]
[404919697,1770682042561,-250.0,0.0003397,2]
[404919698,1770682042582,-250.0,0.0003397,2]
[404919699,1770682042602,-250.0,0.0003397,2]
[404919700,1770682042622,-261.69058041,0.0003397,2]
[404919701,1770682042641,-250.0,0.0003397,2]
[404919702,1770682042660,-250.0,0.0003397,2]
[404919703,1770682042680,-250.0,0.0003397,2]
[404919704,1770682042700,-250.0,0.0003397,2]
[404919705,1770682042720,-250.0,0.0003397,2]
[404919706,1770682042741,-250.0,0.0003397,2]
[404919707,1770682042761,-250.0,0.0003397,2]
[404919708,1770682042782,-250.0,0.0003397,2]
[404919709,1770682042801,-250.0,0.0003397,2]
[404919710,1770682042823,-250.0,0.0003397,2]
[404919711,1770682042843,-250.0,0.0003397,2]
[404919712,1770682042863,-250.0,0.0003397,2]
[404919713,1770682042888,-250.0,0.0003397,2]
[404919714,1770682042910,-250.0,0.0003397,2]
[404919715,1770682042931,-250.0,0.0003397,2]
[404919716,1770682042953,-250.0,0.0003397,2]
[404919717,1770682042975,-250.0,0.0003397,2]
[404919718,1770682042994,-250.0,0.0003397,2]
[404919719,1770682043015,-250.0,0.0003397,2]
[404919720,1770682043037,-389.07173888,0.0003397,2]
[404919721,1770682043058,-500.0,0.0003397,2]
[404919722,1770682043078,-500.0,0.0003397,2]
[404919723,1770682043098,-500.0,0.0003397,2]
[404919724,1770682043120,-500.0,0.0003397,2]
[404919725,1770682043141,-500.0,0.0003397,2]
[404919726,1770682043162,-500.0,0.0003397,2]
[404919727,1770682043183,-500.0,0.0003397,2]
[404919728,1770682043203,-500.0,0.0003397,2]
[404919729,1770682043223,-500.0,0.0003397,2]
[404919730,1770682043244,-423.15124132,0.0003398,2]
[404919731,1770682043268,-19071.82755655,0.0003399,2]
[404919732,1770682043290,-499.07,0.00034,14]
[404919733,1770682043311,-285.0,0.00034289,120]
[404919734,1770682043334,-312.98228156,0.000349,120]
[404919735,1770682043356,-846.30248264,0.0003499,2]
[404919736,1770682043376,-1746.230728,0.00035,5]
[404919737,1770682043398,-5632.63952648,0.00035,2]
[404919738,1770682053078,-91212.95155528,0.00035,2]
[404919739,1770682053099,-300.0,0.00035,120]
[404919740,1770682053119,-272.0,0.00035,120]
[404919741,1770682053140,-2398.88,0.00035148,3]
[404919742,1770682053160,-1199.44,0.00035148,3]
[404919743,1770682053188,-599.72,0.00035148,3]
[404919744,1770682053316,-168.0,0.00035836,2]
[404919745,1770682053342,-312.0,0.00036289,120]
[404919746,1770682053365,-720.0,0.00036887,30]
[404919747,1770682053386,-187.131378,0.00037068,2]
[404919748,1770682053409,-1722.68,0.0003729,10]
[404919749,1770682053431,-1000.0,0.000373,15]
[404919751,1770682053451,-1000.0,0.000373,15]
[404919752,1770682053472,-1000.0,0.000373,15]
[404919753,1770682053496,-168.0,0.0003736,2]
[404919754,1770682053516,-1000.0,0.000376,15]
[404919755,1770682053539,-168.0,0.00037639,2]
[404919756,1770682053560,-1000.0,0.000379,15]
[404919757,1770682053582,-168.0,0.00037932,2]
[404919758,1770682053602,-151.0,0.000381,18]
[404919759,1770682053622,-1000.0,0.000382,15]
[404919760,1770682053643,-339.0,0.00038289,120]
[404919761,1770682053662,-423.15124132,0.00038346,3]
[404919762,1770682053683,-151.0,0.00038356,120]
[404919763,1770682053703,-151.0,0.00038356,120]
[404919764,1770682053723,-151.0,0.00038356,120]
[404919765,1770682053743,-151.0,0.00038356,120]
[404919766,1770682053763,-151.0,0.00038356,120]
[404919767,1770682053783,-151.0,0.00038356,120]
[404919768,1770682053803,-151.0,0.00038356,120]
[404919769,1770682053824,-151.0,0.00038356,120]
[404919770,1770682053845,-151.0,0.00038356,120]
[404919771,1770682053865,-151.0,0.00038356,120]
[404919772,1770682053886,-151.0,0.00038356,120]
[404919773,1770682053907,-151.0,0.00038356,120]
[404919774,1770682053928,-151.0,0.00038356,120]
[404919775,1770682053948,-293.958154,0.00038356,120]
[404919776,1770682053968,-151.0,0.00038356,120]
[404919777,1770682053987,-151.0,0.00038356,120]
[404919778,1770682054007,-151.0,0.00038356,120]
[404919779,1770682054027,-151.0,0.00038356,120]
[404919780,1770682054047,-243.17689,0.00038356,120]
[404919781,1770682054067,-207.84,0.00038356,120]
[404919782,1770682054088,-207.84,0.00038356,120]
[404919783,1770682054108,-207.84,0.00038356,120]
[404919784,1770682054128,-207.84,0.00038356,120]
[404919785,1770682054149,-207.84,0.00038356,120]
[404919786,1770682054170,-207.84,0.00038356,120]
[404919787,1770682054191,-207.84,0.00038356,120]
[404919788,1770682054211,-207.84,0.00038356,120]
[404919789,1770682054231,-207.84,0.00038356,120]
[404919790,1770682054252,-207.84,0.00038356,120]
[404919791,1770682054272,-207.84,0.00038356,120]
[404919792,1770682054295,-207.84,0.00038356,120]
[404919793,1770682054316,-207.84,0.00038356,120]
[404919794,1770682054340,-207.84,0.00038356,120]
[404919795,1770682054361,-207.84,0.00038356,120]
[404919796,1770682054382,-207.84,0.00038356,120]
[404919797,1770682054403,-207.84,0.00038356,120]
[404919798,1770682054423,-207.84,0.00038356,120]
[404919799,1770682054444,-151.0,0.00038356,120]
[404919800,1770682054464,-207.84,0.00038356,120]
[404919801,1770682054485,-207.84,0.00038356,120]
[404919802,1770682054504,-151.0,0.00038356,120]
[404919803,1770682054523,-151.0,0.00038356,10]
[404919804,1770682054542,-151.0,0.00038356,10]
[404919805,1770682054560,-151.0,0.00038356,120]
[404919806,1770682054579,-151.0,0.00038356,120]
[404919807,1770682054597,-254.680514,0.00038356,120]
[404919808,1770682054616,-151.0,0.00038356,120]
[404919809,1770682054636,-151.0,0.00038356,120]
[404919810,1770682054656,-151.0,0.00038356,120]
[404919811,1770682054676,-151.0,0.00038356,120]
[404919812,1770682054696,-151.0,0.00038356,120]
[404919813,1770682054714,-151.0,0.00038356,120]
[404919814,1770682054734,-151.0,0.00038356,120]
[404919815,1770682054754,-151.0,0.00038356,120]
[404919816,1770682054773,-258.912108,0.00038356,120]
[404919817,1770682054794,-151.0,0.00038356,120]
[404919818,1770682054814,-151.0,0.00038356,120]
[404919819,1770682054835,-151.0,0.00038356,120]
[404919820,1770682054855,-151.0,0.00038356,120]
[404919821,1770682054876,-151.0,0.00038356,120]
[404919822,1770682054896,-151.0,0.00038356,7]
[404919823,1770682054917,-151.0,0.00038356,7]
[404919824,1770682054936,-151.0,0.00038356,7]
[404919825,1770682054956,-187.476341,0.00038356,7]
[404919826,1770682054974,-151.0,0.00038356,120]
[404919827,1770682054995,-151.0,0.00038356,120]